Workbook

Sheet Instrucciones
A1: INSTRUCCIONES
A3: 1. En la Pestaña BASES encontraréis el resumen de los puntos por cada apartado, con sus límites máximos
A5: 2. En la Pestaña BAREMACION está el formulario de Autobaremación
A7: 3. Solo se puede escribir en las celdas en las que hay que poner algún dato para evitar borrar accidentalmente alguna fórmula
A9: 4. Antes de iniciar la autobaremación, borrar todos los datos que haya escritos (parece obvio, pero por si acaso…)
A10: para hacerlo todo a la vez, solo tienes que pulsar la goma de borrar que está dentro de la hoja de Baremación.
A12: 5. Por último, al final de la hoja vienen los puntos que se han obtenido en cada cuerpo en el que nos presentamos. Solo valen los que están en amarillo, ya que se aplican los máximos de cada apartado.

Sheet BAREMACION
A2: cursos | E2: ejercicios aprobados
A3: de | B3: a | C3: puntos | D3: 100 | E3: de | F3: a | G3: puntos
A4: 11 | B4: 29 | C4: 1 | E4: 50% | F4: 55% | G4: 5
A5: 30 | B5: 59 | C5: 1.5 | E5: 55% | F5: 60% | G5: 5.5
A6: 60 | B6: 119 | C6: 2 | E6: 60% | F6: 65% | G6: 6
A7: 120 | B7: 1000 | C7: 2.5 | E7: 65% | F7: 70% | G7: 6.5
E8: 70% | F8: 75% | G8: 7
E9: 75% | F9: 80% | G9: 7.5
E10: 80% | F10: 85% | G10: 8
E11: 85% | F11: 90% | G11: 8.5
E12: 90% | F12: 100% | G12: 9
I13: 25% | J13: 50% | L13: para borrar datos haz click en la goma de borrar
B14: MAX | C14: 22 | D14: EJERCICIOS APROBADOS | E14: nota obtenida | F14: nota max | G14: nota en % | H14: puntuacion en el propio cuerpo | I14: puntuacion en cuerpo inferior | J14: puntuacion en cuerpo superior
D15: GESTION | E15: 44.25 | F15: 60 | G15: =IFERROR(+E15/F15,"no apto") -> 74% | H15: =IFERROR(INDIRECT("g"&SUMPRODUCT(--($E$4:$E$12<=G15)*($F$4:$F$12>=G15),ROW($E$4:$E$12))),0) -> 7.00 | I15: =IFERROR(H15*I$13,"") -> 1.75 | J15: =IFERROR(H15*J$13,0) -> 3.50
E16: 15 | F16: 15 | G16: =IFERROR(+E16/F16,"no apto") -> 100% | H16: =IFERROR(INDIRECT("g"&SUMPRODUCT(--($E$4:$E$12<=G16)*($F$4:$F$12>=G16),ROW($E$4:$E$12))),0) -> 9.00 | I16: =IFERROR(H16*I$13,0) -> 2.25 | J16: =IFERROR(H16*J$13,0) -> 4.50
E17: 20 | F17: 25 | G17: 80% | H17: =IFERROR(INDIRECT("g"&SUMPRODUCT(--($E$4:$E$12<=G17)*($F$4:$F$12>=G17),ROW($E$4:$E$12))),0) -> 8.00 | I17: =IFERROR(H17*I$13,0) -> 2.00 | J17: 4.00
D18: TRAMITACION | E18: 48.15 | F18: 60 | G18: 80% | H18: =IFERROR(INDIRECT("g"&SUMPRODUCT(--($E$4:$E$12<=G18)*($F$4:$F$12>=G18),ROW($E$4:$E$12))),0) -> 8.00 | I18: 2.00 | J18: 4.00
E19: 17.5 | F19: 20 | G19: 88% | H19: =IFERROR(INDIRECT("g"&SUMPRODUCT(--($E$4:$E$12<=G19)*($F$4:$F$12>=G19),ROW($E$4:$E$12))),0) -> 8.50 | I19: 2.13 | J19: 4.25
E20: 18.34 | F20: 20 | G20: 92% | H20: =IFERROR(INDIRECT("g"&SUMPRODUCT(--($E$4:$E$12<=G20)*($F$4:$F$12>=G20),ROW($E$4:$E$12))),0) -> 9.00 | I20: 2.25 | J20: 4.50
D21: AUXILIO | E21: 51 | F21: 60 | G21: 85% | H21: =IFERROR(INDIRECT("g"&SUMPRODUCT(--($E$4:$E$12<=G21)*($F$4:$F$12>=G21),ROW($E$4:$E$12))),0) -> 8.50 | I21: 2.13 | J21: 4.25
E22: 32.8 | F22: 40 | G22: 82% | H22: =IFERROR(INDIRECT("g"&SUMPRODUCT(--($E$4:$E$12<=G22)*($F$4:$F$12>=G22),ROW($E$4:$E$12))),0) -> 8.00 | I22: 2.00 | J22: 4.00
E24: MAX | F24: 5.5 | H24: 2.5
E25: Juridico | G25: informatica
B26: MAX | C26: 8 | D26: CURSOS | E26: horas | F26: puntos | G26: horas | H26: puntos
E27: 120 | F27: =IFERROR(INDIRECT("c"&SUMPRODUCT(--($A$4:$A$7<=E27)*($B$4:$B$7>=E27),ROW($A$4:$A$7))),"") -> 2.50 | G27: 120 | H27: =IFERROR(INDIRECT("c"&SUMPRODUCT(--($A$4:$A$7<=G27)*($B$4:$B$7>=G27),ROW($A$4:$A$7))),"") -> 2.50
E28: 120 | F28: =IFERROR(INDIRECT("c"&SUMPRODUCT(--($A$4:$A$7<=E28)*($B$4:$B$7>=E28),ROW($A$4:$A$7))),"") -> 2.50 | G28: 200 | H28: =IFERROR(INDIRECT("c"&SUMPRODUCT(--($A$4:$A$7<=G28)*($B$4:$B$7>=G28),ROW($A$4:$A$7))),"") -> 2.50
E29: 65 | F29: =IFERROR(INDIRECT("c"&SUMPRODUCT(--($A$4:$A$7<=E29)*($B$4:$B$7>=E29),ROW($A$4:$A$7))),"") -> 2.00 | G29: 1 | H29: =IFERROR(INDIRECT("c"&SUMPRODUCT(--($A$4:$A$7<=G29)*($B$4:$B$7>=G29),ROW($A$4:$A$7))),"") -> 
E30: 30 | F30: =IFERROR(INDIRECT("c"&SUMPRODUCT(--($A$4:$A$7<=E30)*($B$4:$B$7>=E30),ROW($A$4:$A$7))),"") -> 1.50 | G30: 25 | H30: =IFERROR(INDIRECT("c"&SUMPRODUCT(--($A$4:$A$7<=G30)*($B$4:$B$7>=G30),ROW($A$4:$A$7))),"") -> 1.00
E31: 50 | F31: =IFERROR(INDIRECT("c"&SUMPRODUCT(--($A$4:$A$7<=E31)*($B$4:$B$7>=E31),ROW($A$4:$A$7))),"") -> 1.50 | G31: 558 | H31: =IFERROR(INDIRECT("c"&SUMPRODUCT(--($A$4:$A$7<=G31)*($B$4:$B$7>=G31),ROW($A$4:$A$7))),"") -> 2.50
E32: 35 | F32: =IFERROR(INDIRECT("c"&SUMPRODUCT(--($A$4:$A$7<=E32)*($B$4:$B$7>=E32),ROW($A$4:$A$7))),"") -> 1.50 | G32: 20 | H32: =IFERROR(INDIRECT("c"&SUMPRODUCT(--($A$4:$A$7<=G32)*($B$4:$B$7>=G32),ROW($A$4:$A$7))),"") -> 1.00
E33: 111 | F33: =IFERROR(INDIRECT("c"&SUMPRODUCT(--($A$4:$A$7<=E33)*($B$4:$B$7>=E33),ROW($A$4:$A$7))),"") -> 2.00 | G33: 12 | H33: =IFERROR(INDIRECT("c"&SUMPRODUCT(--($A$4:$A$7<=G33)*($B$4:$B$7>=G33),ROW($A$4:$A$7))),"") -> 1.00
E34: 444 | F34: =IFERROR(INDIRECT("c"&SUMPRODUCT(--($A$4:$A$7<=E34)*($B$4:$B$7>=E34),ROW($A$4:$A$7))),"") -> 2.50 | G34: 25 | H34: =IFERROR(INDIRECT("c"&SUMPRODUCT(--($A$4:$A$7<=G34)*($B$4:$B$7>=G34),ROW($A$4:$A$7))),"") -> 1.00
F35: =SUM(F27:F34) -> 16.00 | H35: =SUM(H27:H34) -> 11.50
E36: tope | F36: =IF(F35>F24,F24,F35) -> 5.50 | H36: =IF(H35>H24,H24,H35) -> 2.50
B38: MAX | C38: 10 | D38: TITULOS | E38: GESTION Y TRAMITACION | H38: AUXILIO
D39: Licenciatura Derecho o Grado + Máster Derecho: | E39: 10 | G39: Licenciatura Derecho: | H39: 8
D40: Grado en Derecho: | E40: 9 | G40: Grado Derecho: | H40: 7
D41: (1)Licenciatura o grado: | E41: 4 | G41: Carrera Jurídica1: | H41: 3
D42: Relaciones laborales: | E42: 3 | G42: Resto carreras: | H42: 2
D43: Otras: | E43: 2 | G43: Bachillerato: | H43: 3
A44: Poner aqui la puntuación que corresponda según titulación | E44: 10 | H44: 8
F46: 0.20 | H46: 0.10 | J46: 0.05
B47: MAX | C47: 60 | D47: SERVICIOS PRESTADOS | E47: EN EL MISMO CUERPO | G47: EN OTRO CUERPO | I47: LABORAL JUSTICIA
E48: MESES | F48: PUNTOS | G48: MESES | H48: PUNTOS | I48: MESES | J48: PUNTOS
C49: Para GESTION | E49: 120 | F49: =+E49*F$46 -> 24.00 | G49: 60 | H49: =+G49*H$46 -> 6.00 | I49: 20 | J49: =+I49*J$46 -> 1.00
C50: para TRAMITACION | E50: 50 | F50: =+E50*F$46 -> 10.00 | G50: 140 | H50: 14.00 | I50: 20 | J50: =+I50*J$46 -> 1.00
C51: para AUXILIO | E51: 10 | F51: 2.00 | G51: 70 | H51: 7.00 | I51: 20 | J51: =+I51*J$46 -> 1.00
C53: RESULTADO AUTOBAREMACION | E53: GESTION | G53: TRAMITACION | I53: AUXILIO
E54: puntos | F54: Puntuación topada | G54: puntos | H54: Puntuación topada | I54: puntos | J54: Puntuación topada
D55: SERVICIOS PRESTADOS | E55: =+F49+H49+J49 -> 31.00 | F55: =IF(E55>$C$47,$C$47,E55) -> 31.00 | G55: =+F50+H50+J50 -> 25.00 | H55: =IF(G55>$C$47,$C$47,G55) -> 25.00 | I55: =+F51+H51+J51 -> 10.00 | J55: =IF(I55>$C$47,$C$47,I55) -> 10.00
D56: TITULACION | E56: =+E44 -> 10.00 | F56: =IF(E56>$C$38,$C$38,E56) -> 10.00 | G56: =+E44 -> 10.00 | H56: =IF(G56>$C$38,$C$38,G56) -> 10.00 | I56: =+H44 -> 8.00 | J56: =IF(I56>$C$38,$C$38,I56) -> 8.00
C57: CURSOS | D57: JURIDICOS | E57: =SUM($F$27:$F$34) -> 16.00 | F57: =IF(E57>$F$24,$F$24,E57) -> 5.50 | G57: =SUM($F$27:$F$34) -> 16.00 | H57: =IF(G57>$F$24,$F$24,G57) -> 5.50 | I57: =SUM($F$27:$F$34) -> 16.00 | J57: =IF(I57>$F$24,$F$24,I57) -> 5.50
D58: INFORMATICOS | E58: =SUM($H$27:$H$34) -> 11.50 | F58: =IF(E58>$H$24,$H$24,E58) -> 2.50 | G58: =SUM($H$27:$H$34) -> 11.50 | H58: =IF(G58>$H$24,$H$24,G58) -> 2.50 | I58: =SUM($H$27:$H$34) -> 11.50 | J58: =IF(I58>$H$24,$H$24,I58) -> 2.50
D59: SUMA CURSOS | E59: =+E57+E58 -> 27.50 | F59: =IF(E59>$C$26,$C$26,E59) -> 8.00 | G59: =+G57+G58 -> 27.50 | H59: =IF(G59>$C$26,$C$26,G59) -> 8.00 | I59: =+I57+I58 -> 27.50 | J59: =IF(I59>$C$26,$C$26,I59) -> 8.00
D60: EJERCICIOS ANTERORES | E60: =+H15+H16+H17+I18+I19+I20+I21+I22 -> 34.50 | F60: =IF(E60>$C$14,$C$14,E60) -> 22.00 | G60: =+H18+H19+H20+I21+I22+J15+J16+J17 -> 41.63 | H60: =IF(G60>$C$14,$C$14,G60) -> 22.00 | I60: =+H21+H22+J15+J16+J17+J18+J19+J20 -> 41.25 | J60: =IF(I60>$C$14,$C$14,I60) -> 22.00
D61: TOTAL PUNTOS | E61: =+E55+E56+E59+E60 -> 103.00 | F61: 71.00 | G61: 104.13 | H61: 65.00 | I61: 86.75 | J61: 48.00

Sheet BASES
A1: CONCURSO DE MERITOS
B2: GESTIÓN PROCESAL | C2: TRAMITACIÓN | D2: AUXILIO | H2: GESTION | J2: TRAMITACION | M2: AUXILIO
A3: PUNTUACIÓN MÍNIMA | B3: Será necesario obtener un mínimo de 15 puntos en su conjunto
A4: SERVICIOS PRESTADOS (máximo 60) | B4: Gestión: 0,20 ptos/mes | C4: Tramitación: 0,20 ptos/mes | D4: Auxilio: 0,20 ptos/mes | G4: SERVICIOS PRESTADOS (máximo 60) | H4: 0 | J4: 0 | M4: 0
B5: Resto cuerpos grales: 0,10 ptos/mes | C5: Resto cuerpos grales: 0,10 ptos/mes | D5: Resto cuerpos grales: 0,10 ptos/mes | H5: 0 | J5: 0 | M5: 0
B6: Laboral justicia: 0,05 ptos/mes | C6: Laboral justicia: 0,05 ptos/mes | D6: Laboral justicia: 0,05 ptos/mes | H6: 0 | J6: 0 | M6: 0
A7: TÍTULOS ACADÉMICOS (máximo 10) | B7: GESTIÓN Y TRAMITACIÓN | D7: AUXILIO | G7: TOTAL SP | H7: =SUM(H3:H6) -> 0 | J7: =SUM(J3:J6) -> 0 | M7: =SUM(M3:M6) -> 0
B8: Licenciatura Derecho o Grado + Máster Derecho: 10 puntos | D8: Licenciatura Derecho: 8 | G8: TÍTULOS ACADÉMICOS (máximo 10) | H8: 10 | J8: 10 | M8: 8
B9: Grado en Derecho: 9 puntos | D9: Grado Derecho: 7
B10: (1)Licenciatura o grado: 4 puntos | D10: Carrera Jurídica1: 3
B11: Relaciones laborales: 3 puntos | D11: Resto carreras: 2
B12: Otras: 2 puntos | D12: Bachillerato: 3
G13: TOTAL TITULOS | H13: =IF(SUM(H8:H12)>10,10,SUM(H8:H12)) -> 10 | J13: =IF(SUM(J8:J12)>10,10,SUM(J8:J12)) -> 10 | M13: =IF(SUM(M8:M12)>10,10,SUM(M8:M12)) -> 8
A14: CURSOS DE FORMACIÓN (máximo 8) | B14: Jurídicos (5,5): | C14: Informáticos (2,5): | G14: CURSOS DE FORMACIÓN (máximo 8) | H14: Juridicos | I14: Informáticos | J14: Juridicos | L14: Informáticos | M14: Juridicos | N14: Informáticos
B15: Entre 11 y 29 h: 1 puntos. | C15: Entre 11 y 29 h: 1 puntos. | H15: 2.5 | I15: 2.5 | J15: 2.5 | L15: 2.5 | M15: 2.5 | N15: 2.5
B16: Entre 30 y 59 h: 1,5 puntos | C16: Entre 30 y 59 h: 1,5 puntos | H16: 2.5 | J16: 2.5 | M16: 2.5
B17: Entre 60 y 119 h: 2 puntos. | C17: Entre 60 y 119 h: 2 puntos. | H17: 2 | J17: 2 | M17: 2
B18: Entre 120 o más h: 2,5 puntos | C18: Entre 120 o más h: 2,5 puntos
A19: EJERCICIOS APROBADOS (máximo 22) | B19: Por exámenes del mismo cuerpo: | H19: =SUM(H15:H18) -> 7 | I19: =SUM(I15:I18) -> 2.5 | J19: 7 | L19: 2.5 | M19: 7 | N19: 2.5
B20: por nota del 50 al 54,99% | C20: 5 | G20: TOTAL CURSOS | H20: =IF(SUM(H19:I19)>8,8,SUM(H19:I19)) -> 8 | J20: =IF(SUM(J19:L19)>8,8,SUM(J19:L19)) -> 8 | M20: =IF(SUM(M19:N19)>8,8,SUM(M19:N19)) -> 8
B21: por nota del 55 al 59,99% | C21: 5.5 | G21: EJERCICIOS APROBADOS (máximo 22) | H21: Mismo cuerpo | I21: cuerpo inferior | J21: Mismo cuerpo | K21: cuerpo superior | L21: cuerpo inferior | M21: Mismo cuerpo | N21: cuerpo superior | Q21: nota obtenida | R21: nota max | S21: nota en % | T21: 100% | U21: 25% | V21: 50%
B22: por nota de 60 al 64,99% | C22: 6 | H22: 7.00 | I22: 2.00 | J22: 8.00 | K22: 3.50 | L22: 2.13 | M22: 8.50 | N22: 3.50 | P22: GESTION | Q22: 44.25 | R22: 60 | S22: =IFERROR(+Q22/R22,"no apto") -> 73.8% | T22: 7 | U22: =+T22*$U$21 -> 1.75 | V22: =+T22*$V$21 -> 3.50
B23: por nota de 65 al 69,99% | C23: 6.5 | I23: 2.13 | J23: 8.50 | L23: 2.00 | M23: 8.00 | N23: 4.00 | Q23: - | R23: 15 | S23: =IFERROR(+Q23/R23,"no apto") -> no apto | U23: 0.00 | V23: =+T23*$V$21 -> 0.00
B24: por nota de 70 al 74,99%. | C24: 7 | I24: 2.25 | J24: 9.00 | N24: 4.25 | Q24: - | R24: 25 | S24: no apto | U24: 0.00 | V24: 0.00
B25: por nota de 75 al 79,99%. | C25: 7.5 | I25: 2.13 | N25: 4.50 | P25: TRAMITACION | Q25: 48.15 | R25: 60 | S25: 80.3% | T25: 8 | U25: 2.00 | V25: 4.00
B26: por nota de 80 al 84,99%. | C26: 8 | I26: 2.00 | Q26: 17.5 | R26: 20 | S26: 87.5% | T26: 8.5 | U26: 2.13 | V26: 4.25
B27: por nota de 85 al 89,99%. | C27: 8.5 | Q27: 18.34 | R27: 20 | S27: 91.7% | T27: 9 | U27: 2.25 | V27: 4.50
B28: por nota de 90% o superior. | C28: 9 | P28: AUXILIO | Q28: 51 | R28: 60 | S28: 85.0% | T28: 8.5 | U28: 2.13 | V28: 4.25
B29: Si es de un Cuerpo inferior o especial, el 25% de la anterior puntuación | Q29: 32.8 | R29: 40 | S29: 82.0% | T29: 8 | U29: 2.00 | V29: 4.00
B30: Si es de un Cuerpo superior, el 50% de la anterior puntuación.
C33: =22+8+10 -> 40 | H33: =SUM(H22:H32) -> 7.00 | I33: =SUM(I22:I32) -> 10.50 | J33: 25.50 | K33: 3.50 | L33: 4.13 | M33: 16.50 | N33: =SUM(N22:N32) -> 16.25
G34: TOTAL NOTAS | H34: =IF(SUM(H33:I33)>22,22,SUM(H33:I33)) -> 17.5 | J34: =IF(SUM(J33:L33)>22,22,SUM(J33:L33)) -> 22 | M34: =IF(SUM(M33:N33)>22,22,SUM(M33:N33)) -> 22
G35: TOTAL PUNTOS | H35: =+H34+H20+H13 -> 35.50 | J35: =+J34+J20+J13 -> 40.00 | M35: =+M34+M20+M13 -> 38.00
